{"text_format":"1","workbook":"xlsx","n_sheets":2,"sheets":["Sheet2","Sheet1"],"not_rendered":{"charts":0,"images":0,"macros":1,"external_links":0,"defined_names":3,"comments":0,"pivot_tables":0},"unopened":[],"bounds":{"document_bytes":16777216,"sheet_cells":100000,"rows_first":2000,"rows_last":500,"rows_between":2000,"halvings":0,"cell_chars":16384,"cell_head_chars":4096},"cells_cut":0,"cells_raw":0,"read":"whole","date_system":"1900"}

{"sheet":"Sheet2","index":0,"n_rows":29,"n_cols":74,"rows_kept":29,"cut":false,"hidden":false,"merged":[[28,0,28,9],[12,0,12,9],[13,0,13,9],[14,0,14,9],[17,0,17,9],[18,0,18,9],[19,0,19,9],[15,0,15,9],[16,0,16,9],[21,0,21,9],[25,0,25,9],[26,0,26,9],[5,38,9,43],[10,38,14,43],[15,38,19,43],[20,38,24,43],[2,0,2,9],[15,26,19,31],[10,26,14,31],[5,26,9,31],[20,26,24,31],[5,0,5,9],[7,0,7,9],[8,0,8,9],[9,0,9,9],[10,0,10,9],[11,0,11,9],[1,20,4,25],[1,38,4,43],[1,0,1,9],[4,0,4,9],[20,0,20,9],[25,38,29,43],[5,20,9,25],[5,14,9,19],[10,14,14,19],[15,14,19,19],[20,14,24,19],[25,14,29,19],[10,20,14,25],[15,20,19,25],[20,20,24,25],[15,32,19,37],[10,32,14,37],[1,14,4,19],[1,32,4,37],[5,32,9,37],[20,32,24,37],[25,32,29,37],[1,26,4,31],[25,26,29,31],[25,20,29,25],[6,0,6,9],[22,0,22,9],[23,0,23,9],[24,0,24,9],[27,0,27,9]]}
[null,null,null,null,null,null,null,null,null,null,null,null,null,null,null,null,null,null,null,null,null,null,null,null,null,null,null,null,null,null,null,null,null,null,null,null,null,null,null,null,null,null,null,null,null,null,null,null,null,null,null,null,null,null,null,null,null,null,null,null,null,null,null,null,null,null,"row1",null,{"$f":"SUM(BR1:BV1)","v":0},{"$f":"IFERROR(IF(MATCH(\"$O$6\",$BA:$BA,0)>0,1,0),0)","v":0},{"$f":"IFERROR(IF(MATCH(\"$U$6\",$BA:$BA,0)>0,1,0),0)","v":0},{"$f":"IFERROR(IF(MATCH(\"$AA$6\",$BA:$BA,0)>0,1,0),0)","v":0},{"$f":"IFERROR(IF(MATCH(\"$AG$6\",$BA:$BA,0)>0,1,0),0)","v":0},{"$f":"IFERROR(IF(MATCH(\"$AM$6\",$BA:$BA,0)>0,1,0),0)","v":0}]
["Center Square",null,null,null,null,null,null,null,null,null,null,null,null,null,"B",null,null,null,null,null,"I",null,null,null,null,null,"N",null,null,null,null,null,"G",null,null,null,null,null,"O",null,null,null,null,null,null,null,null,null,null,null,null,null,null,null,null,null,null,null,null,null,null,null,null,null,null,null,"row2",null,{"$f":"SUM(BR2:BV2)","v":0},{"$f":"IFERROR(IF(MATCH(\"$O$11\",$BA:$BA,0)>0,1,0),0)","v":0},{"$f":"IFERROR(IF(MATCH(\"$U$11\",$BA:$BA,0)>0,1,0),0)","v":0},{"$f":"IFERROR(IF(MATCH(\"$AA$11\",$BA:$BA,0)>0,1,0),0)","v":0},{"$f":"IFERROR(IF(MATCH(\"$AG$11\",$BA:$BA,0)>0,1,0),0)","v":0},{"$f":"IFERROR(IF(MATCH(\"$AM$11\",$BA:$BA,0)>0,1,0),0)","v":0}]
["Zoom!",null,null,null,null,null,null,null,null,null,null,null,null,null,null,null,null,null,null,null,null,null,null,null,null,null,null,null,null,null,null,null,null,null,null,null,null,null,null,null,null,null,null,null,null,null,null,null,null,null,null,null,null,null,null,null,null,null,null,null,null,null,null,null,null,null,"row3",null,1,{"$f":"IFERROR(IF(MATCH(\"$O$16\",$BA:$BA,0)>0,1,0),0)","v":0},{"$f":"IFERROR(IF(MATCH(\"$U$16\",$BA:$BA,0)>0,1,0),0)","v":0},1,{"$f":"IFERROR(IF(MATCH(\"$AG$16\",$BA:$BA,0)>0,1,0),0)","v":0},{"$f":"IFERROR(IF(MATCH(\"$AM$16\",$BA:$BA,0)>0,1,0),0)","v":0}]
[null,null,null,null,null,null,null,null,null,null,null,null,null,null,null,null,null,null,null,null,null,null,null,null,null,null,null,null,null,null,null,null,null,null,null,null,null,null,null,null,null,null,null,null,null,null,null,null,null,null,null,null,null,null,null,null,null,null,null,null,null,null,null,null,null,null,"row4",null,0,{"$f":"IFERROR(IF(MATCH(\"$O$21\",$BA:$BA,0)>0,1,0),0)","v":0},{"$f":"IFERROR(IF(MATCH(\"$U$21\",$BA:$BA,0)>0,1,0),0)","v":0},{"$f":"IFERROR(IF(MATCH(\"$AA$21\",$BA:$BA,0)>0,1,0),0)","v":0},{"$f":"IFERROR(IF(MATCH(\"$AG$21\",$BA:$BA,0)>0,1,0),0)","v":0},{"$f":"IFERROR(IF(MATCH(\"$AM$21\",$BA:$BA,0)>0,1,0),0)","v":0}]
["Other Squares",null,null,null,null,null,null,null,null,null,null,null,null,null,null,null,null,null,null,null,null,null,null,null,null,null,null,null,null,null,null,null,null,null,null,null,null,null,null,null,null,null,null,null,null,null,null,null,null,null,null,null,null,null,null,null,null,null,null,null,null,null,null,null,null,null,"row5",null,0,{"$f":"IFERROR(IF(MATCH(\"$O$26\",$BA:$BA,0)>0,1,0),0)","v":0},{"$f":"IFERROR(IF(MATCH(\"$U$26\",$BA:$BA,0)>0,1,0),0)","v":0},{"$f":"IFERROR(IF(MATCH(\"$AA$26\",$BA:$BA,0)>0,1,0),0)","v":0},{"$f":"IFERROR(IF(MATCH(\"$AG$26\",$BA:$BA,0)>0,1,0),0)","v":0},{"$f":"IFERROR(IF(MATCH(\"$AM$26\",$BA:$BA,0)>0,1,0),0)","v":0}]
["The Ask",null,null,null,null,null,null,null,null,null,null,null,null,null,{"$f":"IF(A6=\"\",\"\",A6)","v":"The Ask"},null,null,null,null,null,{"$f":"IF(A7=\"\",\"\",A7)","v":"Corporate Values"},null,null,null,null,null,{"$f":"IF(A8=\"\",\"\",A8)","v":"View of the World"},null,null,null,null,null,{"$f":"IF(A9=\"\",\"\",A9)","v":"Mission"},null,null,null,null,null,{"$f":"IF(A10=\"\",\"\",A10)","v":"Give 110%"},null,null,null,null,null,null,null,null,null,null,null,null,null,null,null,null,null,null,null,null,null,null,null,null,null,null,null,"col1",null,0,{"$f":"IFERROR(IF(MATCH(\"$O$6\",$BA:$BA,0)>0,1,0),0)","v":0},{"$f":"IFERROR(IF(MATCH(\"$O$11\",$BA:$BA,0)>0,1,0),0)","v":0},{"$f":"IFERROR(IF(MATCH(\"$O$16\",$BA:$BA,0)>0,1,0),0)","v":0},{"$f":"IFERROR(IF(MATCH(\"$O$21\",$BA:$BA,0)>0,1,0),0)","v":0},{"$f":"IFERROR(IF(MATCH(\"$O$26\",$BA:$BA,0)>0,1,0),0)","v":0}]
["Corporate Values",null,null,null,null,null,null,null,null,null,null,null,null,null,null,null,null,null,null,null,null,null,null,null,null,null,null,null,null,null,null,null,null,null,null,null,null,null,null,null,null,null,null,null,null,null,null,null,null,null,null,null,null,null,null,null,null,null,null,null,null,null,null,null,null,null,"col2",null,0,{"$f":"IFERROR(IF(MATCH(\"$U$6\",$BA:$BA,0)>0,1,0),0)","v":0},{"$f":"IFERROR(IF(MATCH(\"$U$11\",$BA:$BA,0)>0,1,0),0)","v":0},{"$f":"IFERROR(IF(MATCH(\"$U$16\",$BA:$BA,0)>0,1,0),0)","v":0},{"$f":"IFERROR(IF(MATCH(\"$U$21\",$BA:$BA,0)>0,1,0),0)","v":0},{"$f":"IFERROR(IF(MATCH(\"$U$26\",$BA:$BA,0)>0,1,0),0)","v":0}]
["View of the World",null,null,null,null,null,null,null,null,null,null,null,null,null,null,null,null,null,null,null,null,null,null,null,null,null,null,null,null,null,null,null,null,null,null,null,null,null,null,null,null,null,null,null,null,null,null,null,null,null,null,null,null,null,null,null,null,null,null,null,null,null,null,null,null,null,"col3",null,1,{"$f":"IFERROR(IF(MATCH(\"$AA$6\",$BA:$BA,0)>0,1,0),0)","v":0},{"$f":"IFERROR(IF(MATCH(\"$AA$11\",$BA:$BA,0)>0,1,0),0)","v":0},1,{"$f":"IFERROR(IF(MATCH(\"$AA$21\",$BA:$BA,0)>0,1,0),0)","v":0},{"$f":"IFERROR(IF(MATCH(\"$AA$26\",$BA:$BA,0)>0,1,0),0)","v":0}]
["Mission",null,null,null,null,null,null,null,null,null,null,null,null,null,null,null,null,null,null,null,null,null,null,null,null,null,null,null,null,null,null,null,null,null,null,null,null,null,null,null,null,null,null,null,null,null,null,null,null,null,null,null,null,null,null,null,null,null,null,null,null,null,null,null,null,null,"col4",null,0,{"$f":"IFERROR(IF(MATCH(\"$AG$6\",$BA:$BA,0)>0,1,0),0)","v":0},{"$f":"IFERROR(IF(MATCH(\"$AG$11\",$BA:$BA,0)>0,1,0),0)","v":0},{"$f":"IFERROR(IF(MATCH(\"$AG$16\",$BA:$BA,0)>0,1,0),0)","v":0},{"$f":"IFERROR(IF(MATCH(\"$AG$21\",$BA:$BA,0)>0,1,0),0)","v":0},{"$f":"IFERROR(IF(MATCH(\"$AG$26\",$BA:$BA,0)>0,1,0),0)","v":0}]
["Give 110%",null,null,null,null,null,null,null,null,null,null,null,null,null,null,null,null,null,null,null,null,null,null,null,null,null,null,null,null,null,null,null,null,null,null,null,null,null,null,null,null,null,null,null,null,null,null,null,null,null,null,null,null,null,null,null,null,null,null,null,null,null,null,null,null,null,"col5",null,0,{"$f":"IFERROR(IF(MATCH(\"$AM$6\",$BA:$BA,0)>0,1,0),0)","v":0},{"$f":"IFERROR(IF(MATCH(\"$AM$11\",$BA:$BA,0)>0,1,0),0)","v":0},{"$f":"IFERROR(IF(MATCH(\"$AM$16\",$BA:$BA,0)>0,1,0),0)","v":0},{"$f":"IFERROR(IF(MATCH(\"$AM$21\",$BA:$BA,0)>0,1,0),0)","v":0},{"$f":"IFERROR(IF(MATCH(\"$AM$26\",$BA:$BA,0)>0,1,0),0)","v":0}]
["Cycle Back",null,null,null,null,null,null,null,null,null,null,null,null,null,{"$f":"IF(A11=\"\",\"\",A11)","v":"Cycle Back"},null,null,null,null,null,{"$f":"IF(A12=\"\",\"\",A12)","v":"This Here"},null,null,null,null,null,{"$f":"IF(A13=\"\",\"\",A13)","v":"Robust"},null,null,null,null,null,{"$f":"IF(A14=\"\",\"\",A14)","v":"Moving Parts"},null,null,null,null,null,{"$f":"IF(A15=\"\",\"\",A15)","v":"Hope This Email Finds You Well"},null,null,null,null,null,null,null,null,null,null,null,null,null,null,null,null,null,null,null,null,null,null,null,null,null,null,null,"diag1",null,1,{"$f":"IFERROR(IF(MATCH(\"$O$6\",$BA:$BA,0)>0,1,0),0)","v":0},{"$f":"IFERROR(IF(MATCH(\"$U$11\",$BA:$BA,0)>0,1,0),0)","v":0},1,{"$f":"IFERROR(IF(MATCH(\"$AG$21\",$BA:$BA,0)>0,1,0),0)","v":0},{"$f":"IFERROR(IF(MATCH(\"$AM$26\",$BA:$BA,0)>0,1,0),0)","v":0}]
["This Here",null,null,null,null,null,null,null,null,null,null,null,null,null,null,null,null,null,null,null,null,null,null,null,null,null,null,null,null,null,null,null,null,null,null,null,null,null,null,null,null,null,null,null,null,null,null,null,null,null,null,null,null,null,null,null,null,null,null,null,null,null,null,null,null,null,"diag2",null,1,{"$f":"IFERROR(IF(MATCH(\"$AM$6\",$BA:$BA,0)>0,1,0),0)","v":0},{"$f":"IFERROR(IF(MATCH(\"$AG$11\",$BA:$BA,0)>0,1,0),0)","v":0},1,{"$f":"IFERROR(IF(MATCH(\"$U$21\",$BA:$BA,0)>0,1,0),0)","v":0},{"$f":"IFERROR(IF(MATCH(\"$O$26\",$BA:$BA,0)>0,1,0),0)","v":0}]
["Robust"]
["Moving Parts"]
["Hope This Email Finds You Well"]
["Team",null,null,null,null,null,null,null,null,null,null,null,null,null,{"$f":"IF(A16=\"\",\"\",A16)","v":"Team"},null,null,null,null,null,{"$f":"IF(A17=\"\",\"\",A17)","v":"We Just Need About 10 Minutes"},null,null,null,null,null,{"$f":"A3","v":"Zoom!"},null,null,null,null,null,{"$f":"IF(A18=\"\",\"\",A18)","v":"Wrap My Head Around This"},null,null,null,null,null,{"$f":"IF(A19=\"\",\"\",A19)","v":"Source of Truth"}]
["We Just Need About 10 Minutes"]
["Wrap My Head Around This"]
["Source of Truth"]
["Best Practice"]
["Let's Have a Meeting",null,null,null,null,null,null,null,null,null,null,null,null,null,{"$f":"IF(A20=\"\",\"\",A20)","v":"Best Practice"},null,null,null,null,null,{"$f":"IF(A21=\"\",\"\",A21)","v":"Let's Have a Meeting"},null,null,null,null,null,{"$f":"IF(A22=\"\",\"\",A22)","v":"If I Could Make a Suggestion"},null,null,null,null,null,{"$f":"IF(A23=\"\",\"\",A23)","v":"Buy-In"},null,null,null,null,null,{"$f":"IF(A24=\"\",\"\",A24)","v":"Leverage"}]
["If I Could Make a Suggestion"]
["Buy-In"]
["Leverage"]
["Empower"]
["I'm Going to Have to Work on the Weekend",null,null,null,null,null,null,null,null,null,null,null,null,null,{"$f":"IF(A25=\"\",\"\",A25)","v":"Empower"},null,null,null,null,null,{"$f":"IF(A26=\"\",\"\",A26)","v":"I'm Going to Have to Work on the Weekend"},null,null,null,null,null,{"$f":"IF(A27=\"\",\"\",A27)","v":"Transparency"},null,null,null,null,null,{"$f":"IF(A28=\"\",\"\",A28)","v":"Boil the Ocean"},null,null,null,null,null,{"$f":"IF(A29=\"\",\"\",A29)","v":"Think Outside the Box"}]
["Transparency"]
["Boil the Ocean"]
["Think Outside the Box"]

{"sheet":"Sheet1","index":1,"n_rows":0,"n_cols":0,"rows_kept":0,"cut":false,"hidden":false,"merged":[]}